[Event "December 5 Early 2023"]
[Site "https://www.chess.com"]
[Date "2023.12.05"]
[Round "9"]
[White "Khamdamova, Afruza"]
[Black "Begunov, Konstantin"]
[Result "1-0"]
[Board "95"]
[TimeControl "180+1"]
[WhiteFideId "14210444"]
[BlackFideId "4118510"]
[WhiteElo "2534"]
[BlackElo "2436"]
[WhiteTeam "UZB"]
[BlackTeam "RUS"]
[WhiteClock "0:00:10"]
[BlackClock "0:00:09"]

1. e4 {[%clk 0:03:00]}  c5 {[%clk 0:02:59]} 2. Nf3 {[%clk 0:03:01]}  d6 {[%clk 0:03:00]} 3. d4 {[%clk 0:03:01]}  cxd4 {[%clk 0:03:01]} 4. Nxd4 {[%clk 0:03:02]}  Nf6 {[%clk 0:03:02]} 5. Nc3 {[%clk 0:03:02]}  a6 {[%clk 0:03:02]} 6. Be2 {[%clk 0:03:02]}  e5 {[%clk 0:03:03]} 7. Nb3 {[%clk 0:03:02]}  Be7 {[%clk 0:03:03]} 8. O-O {[%clk 0:03:03]}  O-O {[%clk 0:03:04]} 9. Kh1 {[%clk 0:03:03]}  Be6 {[%clk 0:03:04]} 10. f4 {[%clk 0:03:02]}  Qc7 {[%clk 0:03:04]} 11. f5 {[%clk 0:02:58]}  Bc4 {[%clk 0:03:04]} 12. Bg5 {[%clk 0:02:56]}  Nbd7 {[%clk 0:03:03]} 13. Bxc4 {[%clk 0:02:55]}  Qxc4 {[%clk 0:03:02]} 14. Nd2 {[%clk 0:02:55]}  Qb4 {[%clk 0:02:53]} 15. Rb1 {[%clk 0:02:51]}  b5 {[%clk 0:02:52]} 16. a3 {[%clk 0:02:51]}  Qc5 {[%clk 0:02:49]} 17. Qe2 {[%clk 0:02:44]}  Rab8 {[%clk 0:02:44]} 18. Be3 {[%clk 0:02:43]}  Qc6 {[%clk 0:02:42]} 19. Qd3 {[%clk 0:02:17]}  Rfd8 {[%clk 0:02:33]} 20. Nd5 {[%clk 0:02:15]}  Nxd5 {[%clk 0:02:29]} 21. exd5 {[%clk 0:02:15]}  Qc7 {[%clk 0:02:22]} 22. Ne4 {[%clk 0:02:13]}  Rdc8 {[%clk 0:02:14]} 23. c3 {[%clk 0:02:03]}  Nf6 {[%clk 0:02:14]} 24. Rbe1 {[%clk 0:01:46]}  Qc4 {[%clk 0:02:13]} 25. Nxf6+ {[%clk 0:01:44]}  Bxf6 {[%clk 0:02:12]} 26. Qd2 {[%clk 0:01:43]}  a5 {[%clk 0:02:00]} 27. Rd1 {[%clk 0:00:57]}  h6 {[%clk 0:01:54]} 28. Qf2 {[%clk 0:00:56]}  b4 {[%clk 0:01:47]} 29. cxb4 {[%clk 0:00:54]}  axb4 {[%clk 0:01:48]} 30. Qg3 {[%clk 0:00:51]}  bxa3 {[%clk 0:01:37]} 31. bxa3 {[%clk 0:00:51]}  Qh4 {[%clk 0:01:15]} 32. Qxh4 {[%clk 0:00:43]}  Bxh4 {[%clk 0:01:16]} 33. a4 {[%clk 0:00:43]}  Rb3 {[%clk 0:01:05]} 34. Bg1 {[%clk 0:00:42]}  Ra8 {[%clk 0:01:00]} 35. Ra1 {[%clk 0:00:41]}  Bd8 {[%clk 0:00:59]} 36. Rfd1 {[%clk 0:00:36]}  Kf8 {[%clk 0:00:57]} 37. Bf2 {[%clk 0:00:33]}  Ke8 {[%clk 0:00:57]} 38. Be1 {[%clk 0:00:31]}  Ba5 {[%clk 0:00:54]} 39. Bf2 {[%clk 0:00:30]}  Kd7 {[%clk 0:00:50]} 40. Ra2 {[%clk 0:00:29]}  Bb6 {[%clk 0:00:48]} 41. Bxb6 {[%clk 0:00:26]}  Rxb6 {[%clk 0:00:48]} 42. a5 {[%clk 0:00:27]}  Raa6 {[%clk 0:00:33]} 43. f6 {[%clk 0:00:11]}  gxf6 {[%clk 0:00:32]} 44. Rf2 {[%clk 0:00:12]}  Rxa5 {[%clk 0:00:21]} 45. Rxf6 {[%clk 0:00:12]}  Ke7 {[%clk 0:00:20]} 46. Rxh6 {[%clk 0:00:12]}  Rxd5 {[%clk 0:00:20]} 47. Rf1 {[%clk 0:00:12]}  Rb8 {[%clk 0:00:15]} 48. Rh7 {[%clk 0:00:12]}  Rf8 {[%clk 0:00:15]} 49. h4 {[%clk 0:00:12]}  e4 {[%clk 0:00:15]} 50. g4 {[%clk 0:00:08]}  Re5 {[%clk 0:00:14]} 51. Kg2 {[%clk 0:00:08]}  d5 {[%clk 0:00:15]} 52. Kf2 {[%clk 0:00:08]}  d4 {[%clk 0:00:14]} 53. Ke2 {[%clk 0:00:08]}  Ke6 {[%clk 0:00:13]} 54. Rh6+ {[%clk 0:00:08]}  Ke7 {[%clk 0:00:13]} 55. g5 {[%clk 0:00:08]}  Ra8 {[%clk 0:00:13]} 56. Rhf6 {[%clk 0:00:05]}  Ra2+ {[%clk 0:00:13]} 57. Ke1 {[%clk 0:00:05]}  Ra1+ {[%clk 0:00:13]} 58. Ke2 {[%clk 0:00:05]}  d3+ {[%clk 0:00:12]} 59. Ke3 {[%clk 0:00:05]}  Ra2 {[%clk 0:00:11]} 60. Rxf7+ {[%clk 0:00:06]}  Kd6 {[%clk 0:00:11]} 61. R1f6+ {[%clk 0:00:06]}  Kd5 {[%clk 0:00:12]} 62. Rd7+ {[%clk 0:00:06]}  Kc4 {[%clk 0:00:11]} 63. Rc7+ {[%clk 0:00:07]}  Kb3 {[%clk 0:00:12]} 64. Rb6+ {[%clk 0:00:07]}  Ka4 {[%clk 0:00:10]} 65. Ra6+ {[%clk 0:00:08]}  Ra5 {[%clk 0:00:11]} 66. Rxa5+ {[%clk 0:00:08]}  Kxa5 {[%clk 0:00:12]} 67. Ra7+ {[%clk 0:00:09]}  Kb4 {[%clk 0:00:13]} 68. Rxa2 {[%clk 0:00:09]}  Kc3 {[%clk 0:00:09]} 69. Rd2 {[%clk 0:00:10]} 1-0

[Event "December 5 Early 2023"]
[Site "https://www.chess.com"]
[Date "2023.12.05"]
[Round "9"]
[White "Rogov, Matfey"]
[Black "Sai Han Thiha"]
[Result "0-1"]
[Board "96"]
[TimeControl "180+1"]
[WhiteFideId "44191308"]
[BlackFideId "13012290"]
[WhiteElo "2534"]
[BlackElo "2431"]
[WhiteTeam "RUS"]
[BlackTeam "MYA"]
[WhiteClock "0:00:03"]
[BlackClock "0:00:08"]

1. e4 {[%clk 0:03:00]}  c6 {[%clk 0:02:58]} 2. d4 {[%clk 0:03:00]}  d5 {[%clk 0:02:55]} 3. exd5 {[%clk 0:03:01]}  cxd5 {[%clk 0:02:55]} 4. Nf3 {[%clk 0:03:02]}  Nf6 {[%clk 0:02:53]} 5. c4 {[%clk 0:03:02]}  e6 {[%clk 0:02:54]} 6. c5 {[%clk 0:03:02]}  b6 {[%clk 0:02:50]} 7. b4 {[%clk 0:02:35]}  a5 {[%clk 0:02:49]} 8. Ne5 {[%clk 0:02:21]}  Bd7 {[%clk 0:01:41]} 9. Qc2 {[%clk 0:01:44]}  axb4 {[%clk 0:01:25]} 10. c6 {[%clk 0:01:37]}  Nxc6 {[%clk 0:01:25]} 11. Nxc6 {[%clk 0:01:38]}  Qc7 {[%clk 0:01:25]} 12. Bb5 {[%clk 0:01:24]}  Rc8 {[%clk 0:01:25]} 13. O-O {[%clk 0:00:31]}  Bxc6 {[%clk 0:01:25]} 14. Bd3 {[%clk 0:00:30]}  Bd6 {[%clk 0:01:23]} 15. h3 {[%clk 0:00:29]}  O-O {[%clk 0:01:15]} 16. Bg5 {[%clk 0:00:29]}  Ne4 {[%clk 0:01:14]} 17. Be3 {[%clk 0:00:26]}  Qd7 {[%clk 0:00:51]} 18. Qe2 {[%clk 0:00:24]}  f5 {[%clk 0:00:47]} 19. Bxe4 {[%clk 0:00:16]}  dxe4 {[%clk 0:00:46]} 20. g3 {[%clk 0:00:09]}  Bb5 {[%clk 0:00:30]} 21. Qh5 {[%clk 0:00:05]}  g6 {[%clk 0:00:27]} 22. Qg5 {[%clk 0:00:04]}  f4 {[%clk 0:00:22]} 23. gxf4 {[%clk 0:00:05]}  Rf5 {[%clk 0:00:21]} 24. Qg4 {[%clk 0:00:04]}  Bxf1 {[%clk 0:00:20]} 25. Kxf1 {[%clk 0:00:05]}  Qb5+ {[%clk 0:00:20]} 26. Kg2 {[%clk 0:00:05]}  Rc2 {[%clk 0:00:17]} 27. Nd2 {[%clk 0:00:05]}  Qd3 {[%clk 0:00:17]} 28. Rd1 {[%clk 0:00:04]}  Rxa2 {[%clk 0:00:16]} 29. Nf1 {[%clk 0:00:04]}  Qe2 {[%clk 0:00:15]} 30. Rc1 {[%clk 0:00:02]}  Qxg4+ {[%clk 0:00:13]} 31. hxg4 {[%clk 0:00:03]}  Rf8 {[%clk 0:00:13]} 32. Rc6 {[%clk 0:00:03]}  Bxf4 {[%clk 0:00:13]} 33. Bxf4 {[%clk 0:00:03]}  Rxf4 {[%clk 0:00:14]} 34. Ne3 {[%clk 0:00:01]}  Rfxf2+ {[%clk 0:00:12]} 35. Kg3 {[%clk 0:00:01]}  Rf3+ {[%clk 0:00:13]} 36. Kh4 {[%clk 0:00:02]}  Rxe3 {[%clk 0:00:13]} 37. Kg5 {[%clk 0:00:02]}  Rf3 {[%clk 0:00:14]} 38. Rc8+ {[%clk 0:00:02]}  Rf8 {[%clk 0:00:14]} 39. Rc7 {[%clk 0:00:02]}  Raf2 {[%clk 0:00:12]} 40. Rb7 {[%clk 0:00:02]}  e3 {[%clk 0:00:12]} 41. Re7 {[%clk 0:00:02]}  R2f6 {[%clk 0:00:10]} 42. Kh6 {[%clk 0:00:02]}  R6f7 {[%clk 0:00:09]} 43. Rxe6 {[%clk 0:00:02]}  b3 {[%clk 0:00:08]} 44. Rxe3 {[%clk 0:00:03]}  b2 {[%clk 0:00:09]} 45. Rb3 {[%clk 0:00:03]}  Rf2 {[%clk 0:00:09]} 46. Rxb6 {[%clk 0:00:03]}  Rh2+ {[%clk 0:00:10]} 47. Kg5 {[%clk 0:00:04]}  Rf1 {[%clk 0:00:10]} 48. Rb8+ {[%clk 0:00:04]}  Kf7 {[%clk 0:00:11]} 49. Rb7+ {[%clk 0:00:04]}  Ke6 {[%clk 0:00:11]} 50. Rxh7 {[%clk 0:00:04]}  b1=Q {[%clk 0:00:11]} 51. Rxh2 {[%clk 0:00:05]}  Qc1+ {[%clk 0:00:11]} 52. Kxg6 {[%clk 0:00:05]}  Qb1+ {[%clk 0:00:10]} 53. Kg7 {[%clk 0:00:05]}  Rf7+ {[%clk 0:00:09]} 54. Kg8 {[%clk 0:00:03]}  Qg6+ {[%clk 0:00:08]} 55. Kh8 {[%clk 0:00:03]}  Qg7# {[%clk 0:00:08]} 0-1

[Event "December 5 Early 2023"]
[Site "https://www.chess.com"]
[Date "2023.12.05"]
[Round "9"]
[White "Bochnicka, Vladimir"]
[Black "Tao, Sihan"]
[Result "0-1"]
[Board "97"]
[TimeControl "180+1"]
[WhiteFideId "14943450"]
[BlackFideId "30982677"]
[WhiteElo "2423"]
[BlackElo "2530"]
[WhiteTeam "SVK"]
[BlackTeam "USA"]
[WhiteClock "0:00:08"]
[BlackClock "0:01:09"]

1. e4 {[%clk 0:02:49]}  c5 {[%clk 0:02:58]} 2. Nf3 {[%clk 0:02:48]}  d6 {[%clk 0:02:58]} 3. d4 {[%clk 0:02:46]}  cxd4 {[%clk 0:02:59]} 4. Nxd4 {[%clk 0:02:47]}  Nf6 {[%clk 0:02:59]} 5. Nc3 {[%clk 0:02:47]}  Nc6 {[%clk 0:03:00]} 6. f3 {[%clk 0:02:47]}  e5 {[%clk 0:03:00]} 7. Nb3 {[%clk 0:02:45]}  Be6 {[%clk 0:03:00]} 8. Nd5 {[%clk 0:02:42]}  Be7 {[%clk 0:02:59]} 9. Be2 {[%clk 0:02:38]}  O-O {[%clk 0:02:58]} 10. O-O {[%clk 0:02:39]}  a5 {[%clk 0:02:57]} 11. a4 {[%clk 0:02:35]}  Bxd5 {[%clk 0:02:46]} 12. exd5 {[%clk 0:02:35]}  Nb4 {[%clk 0:02:47]} 13. c4 {[%clk 0:02:36]}  Qc8 {[%clk 0:02:41]} 14. Be3 {[%clk 0:02:35]}  Nd7 {[%clk 0:02:38]} 15. Qd2 {[%clk 0:02:35]}  b6 {[%clk 0:02:35]} 16. Nc1 {[%clk 0:02:13]}  Nc5 {[%clk 0:02:31]} 17. Bd1 {[%clk 0:02:04]}  Qf5 {[%clk 0:02:24]} 18. Ne2 {[%clk 0:01:50]}  Qd3 {[%clk 0:02:07]} 19. Nc3 {[%clk 0:01:44]}  Qxd2 {[%clk 0:02:05]} 20. Bxd2 {[%clk 0:01:45]}  h6 {[%clk 0:02:05]} 21. b3 {[%clk 0:01:38]}  Bg5 {[%clk 0:02:04]} 22. f4 {[%clk 0:01:33]}  exf4 {[%clk 0:01:59]} 23. Bxf4 {[%clk 0:01:20]}  Bf6 {[%clk 0:01:47]} 24. Bd2 {[%clk 0:01:17]}  Ne4 {[%clk 0:01:40]} 25. Nxe4 {[%clk 0:01:17]}  Bxa1 {[%clk 0:01:40]} 26. Nxd6 {[%clk 0:01:18]}  Bd4+ {[%clk 0:01:40]} 27. Kh1 {[%clk 0:01:17]}  Bc5 {[%clk 0:01:40]} 28. Ne4 {[%clk 0:01:00]}  Rfe8 {[%clk 0:01:39]} 29. Nxc5 {[%clk 0:00:57]}  bxc5 {[%clk 0:01:40]} 30. Bxb4 {[%clk 0:00:57]}  axb4 {[%clk 0:01:40]} 31. h3 {[%clk 0:00:53]}  Re3 {[%clk 0:01:40]} 32. Kh2 {[%clk 0:00:46]}  Kf8 {[%clk 0:01:40]} 33. Rf3 {[%clk 0:00:41]}  Rxf3 {[%clk 0:01:37]} 34. Bxf3 {[%clk 0:00:41]}  Ra6 {[%clk 0:01:34]} 35. Kg3 {[%clk 0:00:41]}  Ke7 {[%clk 0:01:34]} 36. Kf4 {[%clk 0:00:41]}  Kd6 {[%clk 0:01:34]} 37. g3 {[%clk 0:00:35]}  Ra8 {[%clk 0:01:34]} 38. g4 {[%clk 0:00:21]}  Re8 {[%clk 0:01:33]} 39. Be4 {[%clk 0:00:21]}  Re7 {[%clk 0:01:30]} 40. h4 {[%clk 0:00:21]}  g6 {[%clk 0:01:29]} 41. h5 {[%clk 0:00:19]}  gxh5 {[%clk 0:01:17]} 42. gxh5 {[%clk 0:00:19]}  Re5 {[%clk 0:01:17]} 43. Bf3 {[%clk 0:00:15]}  Re1 {[%clk 0:01:18]} 44. a5 {[%clk 0:00:13]}  Ra1 {[%clk 0:01:17]} 45. a6 {[%clk 0:00:14]}  Rxa6 {[%clk 0:01:17]} 46. Kf5 {[%clk 0:00:14]}  Ra3 {[%clk 0:01:16]} 47. Bd1 {[%clk 0:00:13]}  Ra1 {[%clk 0:01:16]} 48. Bc2 {[%clk 0:00:10]}  Rc1 {[%clk 0:01:15]} 49. Be4 {[%clk 0:00:11]}  Rf1+ {[%clk 0:01:12]} 50. Kg4 {[%clk 0:00:10]}  Ke5 {[%clk 0:01:10]} 51. Bd3 {[%clk 0:00:09]}  Rd1 {[%clk 0:01:09]} 52. Bc2 {[%clk 0:00:09]}  Rd2 {[%clk 0:01:10]} 53. Bh7 {[%clk 0:00:07]}  Rb2 {[%clk 0:01:09]} 54. Bg8 {[%clk 0:00:08]}  Rxb3 {[%clk 0:01:09]} 55. Bxf7 {[%clk 0:00:08]}  Rc3 {[%clk 0:01:09]} 0-1

[Event "December 5 Early 2023"]
[Site "https://www.chess.com"]
[Date "2023.12.05"]
[Round "9"]
[White "Pham, Le Thao Nguyen"]
[Black "Bolat, Inayat"]
[Result "0-1"]
[Board "98"]
[TimeControl "180+1"]
[WhiteFideId "12401226"]
[BlackFideId "13733125"]
[WhiteElo "2525"]
[BlackElo "2419"]
[WhiteTeam "VIE"]
[BlackTeam "KAZ"]
[WhiteClock "0:00:00"]
[BlackClock "0:00:14"]

1. d4 {[%clk 0:02:54]}  Nf6 {[%clk 0:02:59]} 2. c4 {[%clk 0:02:55]}  g6 {[%clk 0:03:00]} 3. Nc3 {[%clk 0:02:55]}  Bg7 {[%clk 0:03:00]} 4. Bg5 {[%clk 0:02:54]}  O-O {[%clk 0:03:00]} 5. e3 {[%clk 0:02:54]}  d6 {[%clk 0:03:01]} 6. Nf3 {[%clk 0:02:54]}  h6 {[%clk 0:02:58]} 7. Bh4 {[%clk 0:02:54]}  Nbd7 {[%clk 0:02:55]} 8. Be2 {[%clk 0:02:52]}  e5 {[%clk 0:02:49]} 9. O-O {[%clk 0:02:37]}  Re8 {[%clk 0:02:45]} 10. Qc2 {[%clk 0:02:07]}  c6 {[%clk 0:02:42]} 11. Rfd1 {[%clk 0:02:05]}  Qe7 {[%clk 0:02:37]} 12. dxe5 {[%clk 0:01:54]}  Nxe5 {[%clk 0:02:34]} 13. Nxe5 {[%clk 0:01:48]}  dxe5 {[%clk 0:02:31]} 14. Rd2 {[%clk 0:01:40]}  Bf5 {[%clk 0:02:28]} 15. Bd3 {[%clk 0:01:37]}  e4 {[%clk 0:02:10]} 16. Bf1 {[%clk 0:01:31]}  Rad8 {[%clk 0:01:57]} 17. Rad1 {[%clk 0:01:30]}  g5 {[%clk 0:01:55]} 18. Bg3 {[%clk 0:01:29]}  Nh5 {[%clk 0:01:54]} 19. Bd6 {[%clk 0:01:07]}  Qe6 {[%clk 0:01:46]} 20. Bc7 {[%clk 0:01:07]}  Rc8 {[%clk 0:01:41]} 21. Bd6 {[%clk 0:01:01]}  Red8 {[%clk 0:01:25]} 22. Ne2 {[%clk 0:00:50]}  Rd7 {[%clk 0:01:19]} 23. b4 {[%clk 0:00:31]}  Rcd8 {[%clk 0:00:55]} 24. c5 {[%clk 0:00:30]}  Bg6 {[%clk 0:00:50]} 25. Nd4 {[%clk 0:00:23]}  Bxd4 {[%clk 0:00:48]} 26. Rxd4 {[%clk 0:00:23]}  Nf6 {[%clk 0:00:48]} 27. Bc4 {[%clk 0:00:22]}  Qg4 {[%clk 0:00:40]} 28. h3 {[%clk 0:00:21]}  Qf5 {[%clk 0:00:40]} 29. Be2 {[%clk 0:00:14]}  h5 {[%clk 0:00:35]} 30. b5 {[%clk 0:00:12]}  Ne8 {[%clk 0:00:32]} 31. bxc6 {[%clk 0:00:06]}  bxc6 {[%clk 0:00:33]} 32. Bh2 {[%clk 0:00:05]}  Rxd4 {[%clk 0:00:29]} 33. exd4 {[%clk 0:00:05]}  Nf6 {[%clk 0:00:23]} 34. Be5 {[%clk 0:00:02]}  Nd5 {[%clk 0:00:20]} 35. Bf1 {[%clk 0:00:02]}  f6 {[%clk 0:00:13]} 36. Bh2 {[%clk 0:00:00]}  g4 {[%clk 0:00:14]} 0-1

[Event "December 5 Early 2023"]
[Site "https://www.chess.com"]
[Date "2023.12.05"]
[Round "9"]
[White "Hoffmann, Asa"]
[Black "Rangel, Daniel"]
[Result "0-1"]
[Board "99"]
[TimeControl "180+1"]
[WhiteFideId "2001470"]
[BlackFideId "2124475"]
[WhiteElo "2411"]
[BlackElo "2524"]
[WhiteTeam "USA"]
[BlackTeam "BRA"]
[WhiteClock "0:00:08"]
[BlackClock "0:00:05"]

1. d4 {[%clk 0:02:58]}  Nf6 {[%clk 0:02:58]} 2. Bg5 {[%clk 0:02:57]}  g6 {[%clk 0:02:56]} 3. Nc3 {[%clk 0:02:57]}  Bg7 {[%clk 0:02:56]} 4. e4 {[%clk 0:02:57]}  d5 {[%clk 0:02:55]} 5. e5 {[%clk 0:02:56]}  Ne4 {[%clk 0:02:56]} 6. Nxe4 {[%clk 0:02:55]}  dxe4 {[%clk 0:02:57]} 7. c3 {[%clk 0:02:54]}  c5 {[%clk 0:02:57]} 8. dxc5 {[%clk 0:02:41]}  Qc7 {[%clk 0:02:56]} 9. Bb5+ {[%clk 0:02:34]}  Bd7 {[%clk 0:02:55]} 10. Bxd7+ {[%clk 0:02:32]}  Nxd7 {[%clk 0:02:56]} 11. Ne2 {[%clk 0:02:18]}  Nxc5 {[%clk 0:02:45]} 12. O-O {[%clk 0:02:14]}  Bxe5 {[%clk 0:02:38]} 13. h3 {[%clk 0:02:10]}  O-O {[%clk 0:02:36]} 14. Nd4 {[%clk 0:02:04]}  Rad8 {[%clk 0:02:27]} 15. Be3 {[%clk 0:01:54]}  Bxd4 {[%clk 0:02:01]} 16. cxd4 {[%clk 0:01:53]}  Nd3 {[%clk 0:02:01]} 17. Qb3 {[%clk 0:01:46]}  Kg7 {[%clk 0:01:50]} 18. f3 {[%clk 0:01:45]}  Qg3 {[%clk 0:01:28]} 19. Qxb7 {[%clk 0:01:34]}  Rb8 {[%clk 0:01:18]} 20. Qxe4 {[%clk 0:01:32]}  Rxb2 {[%clk 0:01:18]} 21. f4 {[%clk 0:01:10]}  Rxg2+ {[%clk 0:00:44]} 22. Qxg2 {[%clk 0:01:07]}  Qxe3+ {[%clk 0:00:44]} 23. Kh1 {[%clk 0:01:00]}  Nxf4 {[%clk 0:00:43]} 24. Qf3 {[%clk 0:01:00]}  Qxf3+ {[%clk 0:00:36]} 25. Rxf3 {[%clk 0:01:00]}  Nd5 {[%clk 0:00:37]} 26. Rb1 {[%clk 0:00:53]}  Rc8 {[%clk 0:00:37]} 27. Rf2 {[%clk 0:00:49]}  Rc3 {[%clk 0:00:36]} 28. Rb3 {[%clk 0:00:47]}  Rc1+ {[%clk 0:00:33]} 29. Kh2 {[%clk 0:00:47]}  Rd1 {[%clk 0:00:33]} 30. Ra3 {[%clk 0:00:46]}  Rxd4 {[%clk 0:00:29]} 31. Rxa7 {[%clk 0:00:46]}  Rd3 {[%clk 0:00:28]} 32. a4 {[%clk 0:00:43]}  g5 {[%clk 0:00:25]} 33. a5 {[%clk 0:00:41]}  Nf4 {[%clk 0:00:21]} 34. Rxe7 {[%clk 0:00:39]}  Rxh3+ {[%clk 0:00:20]} 35. Kg1 {[%clk 0:00:39]}  Ra3 {[%clk 0:00:21]} 36. Rxf4 {[%clk 0:00:33]}  gxf4 {[%clk 0:00:20]} 37. Re5 {[%clk 0:00:28]}  Kg6 {[%clk 0:00:19]} 38. Kf2 {[%clk 0:00:28]}  f5 {[%clk 0:00:19]} 39. Rb5 {[%clk 0:00:25]}  h5 {[%clk 0:00:15]} 40. Rb6+ {[%clk 0:00:24]}  Kg5 {[%clk 0:00:16]} 41. a6 {[%clk 0:00:24]}  f3 {[%clk 0:00:16]} 42. Rc6 {[%clk 0:00:16]}  h4 {[%clk 0:00:14]} 43. Rb6 {[%clk 0:00:14]}  Kg4 {[%clk 0:00:13]} 44. Rg6+ {[%clk 0:00:13]}  Kf4 {[%clk 0:00:13]} 45. Rh6 {[%clk 0:00:12]}  Ra2+ {[%clk 0:00:13]} 46. Kf1 {[%clk 0:00:11]}  Kg4 {[%clk 0:00:09]} 47. Rg6+ {[%clk 0:00:11]}  Kh3 {[%clk 0:00:09]} 48. Rf6 {[%clk 0:00:10]}  f4 {[%clk 0:00:05]} 49. Rxf4 {[%clk 0:00:09]}  Kg3 {[%clk 0:00:05]} 50. Rf6 {[%clk 0:00:08]}  Ra1# {[%clk 0:00:05]} 0-1

[Event "December 5 Early 2023"]
[Site "https://www.chess.com"]
[Date "2023.12.05"]
[Round "9"]
[White "Ovezdurdyyeva, Jemal"]
[Black "Masague Artero, Guerau"]
[Result "0-1"]
[Board "100"]
[TimeControl "180+1"]
[WhiteFideId "14001888"]
[BlackFideId "32098952"]
[WhiteElo "2395"]
[BlackElo "2521"]
[WhiteTeam "TKM"]
[BlackTeam "ESP"]
[WhiteClock "0:00:09"]
[BlackClock "0:01:03"]

1. e4 {[%clk 0:03:00]}  c6 {[%clk 0:02:45]} 2. d4 {[%clk 0:03:00]}  g6 {[%clk 0:02:45]} 3. Nf3 {[%clk 0:02:59]}  Bg7 {[%clk 0:02:44]} 4. Nc3 {[%clk 0:02:57]}  d5 {[%clk 0:02:40]} 5. h3 {[%clk 0:02:56]}  Nf6 {[%clk 0:02:38]} 6. e5 {[%clk 0:02:54]}  Ne4 {[%clk 0:02:38]} 7. Bd3 {[%clk 0:02:50]}  Nxc3 {[%clk 0:02:38]} 8. bxc3 {[%clk 0:02:50]}  c5 {[%clk 0:02:38]} 9. O-O {[%clk 0:02:41]}  Nc6 {[%clk 0:02:39]} 10. Bg5 {[%clk 0:02:30]}  O-O {[%clk 0:02:31]} 11. Qd2 {[%clk 0:02:28]}  Qa5 {[%clk 0:02:30]} 12. a4 {[%clk 0:02:19]}  cxd4 {[%clk 0:02:30]} 13. cxd4 {[%clk 0:02:18]}  Qxd2 {[%clk 0:02:30]} 14. Bxd2 {[%clk 0:02:18]}  Bf5 {[%clk 0:02:18]} 15. Bxf5 {[%clk 0:02:09]}  gxf5 {[%clk 0:02:19]} 16. Rfb1 {[%clk 0:02:08]}  Rab8 {[%clk 0:02:18]} 17. Rb5 {[%clk 0:02:06]}  e6 {[%clk 0:02:17]} 18. Rab1 {[%clk 0:02:06]}  b6 {[%clk 0:02:13]} 19. a5 {[%clk 0:01:52]}  bxa5 {[%clk 0:02:13]} 20. Rxb8 {[%clk 0:01:49]}  Rxb8 {[%clk 0:02:14]} 21. Rxb8+ {[%clk 0:01:49]}  Nxb8 {[%clk 0:02:15]} 22. Bxa5 {[%clk 0:01:50]}  Bf8 {[%clk 0:02:13]} 23. Nd2 {[%clk 0:01:46]}  Nc6 {[%clk 0:02:02]} 24. Nb3 {[%clk 0:01:32]}  Ba3 {[%clk 0:01:56]} 25. Bc3 {[%clk 0:01:28]}  Bb4 {[%clk 0:01:45]} 26. Bxb4 {[%clk 0:01:06]}  Nxb4 {[%clk 0:01:45]} 27. Na1 {[%clk 0:01:05]}  a5 {[%clk 0:01:42]} 28. Kf1 {[%clk 0:01:05]}  a4 {[%clk 0:01:24]} 29. Ke2 {[%clk 0:01:04]}  Nc6 {[%clk 0:01:24]} 30. c3 {[%clk 0:01:03]}  Na5 {[%clk 0:01:22]} 31. Nc2 {[%clk 0:00:58]}  Nc4 {[%clk 0:01:21]} 32. Nb4 {[%clk 0:00:57]}  Kg7 {[%clk 0:01:15]} 33. Kd3 {[%clk 0:00:47]}  Kg6 {[%clk 0:01:14]} 34. Kc2 {[%clk 0:00:26]}  Kg5 {[%clk 0:01:13]} 35. Nc6 {[%clk 0:00:26]}  f6 {[%clk 0:01:03]} 36. exf6 {[%clk 0:00:13]}  Kxf6 {[%clk 0:01:04]} 37. f4 {[%clk 0:00:09]}  Ne3+ {[%clk 0:01:03]} 0-1

[Event "December 5 Early 2023"]
[Site "https://www.chess.com"]
[Date "2023.12.05"]
[Round "9"]
[White "Tharushi, T H D Niklesha"]
[Black "Sadubayev, Airat"]
[Result "0-1"]
[Board "104"]
[TimeControl "180+1"]
[WhiteFideId "9918264"]
[BlackFideId "13713264"]
[WhiteElo "2340"]
[BlackElo "2657"]
[WhiteTeam "SRI"]
[BlackTeam "KAZ"]
[WhiteClock "0:00:00"]
[BlackClock "0:00:09"]

1. e4 {[%clk 0:03:00]}  c5 {[%clk 0:02:56]} 2. Nf3 {[%clk 0:02:59]}  e6 {[%clk 0:02:54]} 3. d4 {[%clk 0:02:57]}  cxd4 {[%clk 0:02:54]} 4. Nxd4 {[%clk 0:02:58]}  Nc6 {[%clk 0:02:54]} 5. Nc3 {[%clk 0:02:53]}  Qc7 {[%clk 0:02:53]} 6. Be3 {[%clk 0:02:46]}  a6 {[%clk 0:02:53]} 7. Qd2 {[%clk 0:02:45]}  Nf6 {[%clk 0:02:50]} 8. f3 {[%clk 0:02:44]}  Be7 {[%clk 0:02:41]} 9. Be2 {[%clk 0:02:44]}  O-O {[%clk 0:02:39]} 10. g4 {[%clk 0:02:40]}  b5 {[%clk 0:02:34]} 11. h4 {[%clk 0:02:32]}  Ne5 {[%clk 0:02:25]} 12. h5 {[%clk 0:02:18]}  Nc4 {[%clk 0:02:04]} 13. Bxc4 {[%clk 0:02:15]}  bxc4 {[%clk 0:01:57]} 14. g5 {[%clk 0:02:12]}  Ne8 {[%clk 0:01:34]} 15. Bf4 {[%clk 0:01:09]}  Qb6 {[%clk 0:01:19]} 16. Be3 {[%clk 0:00:20]}  Qxb2 {[%clk 0:01:07]} 17. Rb1 {[%clk 0:00:20]}  Qa3 {[%clk 0:01:06]} 18. Nf5 {[%clk 0:00:08]}  exf5 {[%clk 0:00:48]} 19. Nd5 {[%clk 0:00:08]}  Bd8 {[%clk 0:00:27]} 20. g6 {[%clk 0:00:08]}  Nf6 {[%clk 0:00:23]} 21. h6 {[%clk 0:00:05]}  fxg6 {[%clk 0:00:16]} 22. hxg7 {[%clk 0:00:05]}  Rf7 {[%clk 0:00:12]} 23. Nxf6+ {[%clk 0:00:03]}  Bxf6 {[%clk 0:00:12]} 24. Bd4 {[%clk 0:00:00]}  Qxa2 {[%clk 0:00:09]} 0-1